[Event "Titled Tuesday Blitz March 22 Early 2022"]
[White "Zhigalko, Sergei"]
[Black "Sargsyan, Anna M."]
[WhiteFideId "13502956"]
[BlackFideId "13308130"]
[WhiteElo "2662"]
[BlackElo "2271"]
[Result "1-0"]
[Round "10"]
[TimeControl "180+1"]
[Date "2022.03.22"]
[WhiteClock "0:00:31"]
[BlackClock "0:01:10"]

1. e4 {[%clk 0:03:00]}  e5 {[%clk 0:02:59]} 2. Nf3 {[%clk 0:03:00]}  Nc6 {[%clk 0:03:00]} 3. Bc4 {[%clk 0:03:00]}  Bc5 {[%clk 0:02:58]} 4. b4 {[%clk 0:03:00]}  Bxb4 {[%clk 0:02:57]} 5. c3 {[%clk 0:03:00]}  Ba5 {[%clk 0:02:57]} 6. d4 {[%clk 0:03:00]}  exd4 {[%clk 0:02:56]} 7. O-O {[%clk 0:02:59]}  Nge7 {[%clk 0:02:50]} 8. Ng5 {[%clk 0:02:57]}  Ne5 {[%clk 0:02:46]} 9. Nxf7 {[%clk 0:02:55]}  Nxf7 {[%clk 0:02:43]} 10. Bxf7+ {[%clk 0:02:56]}  Kxf7 {[%clk 0:02:43]} 11. Qh5+ {[%clk 0:02:56]}  Ng6 {[%clk 0:02:39]} 12. Qd5+ {[%clk 0:02:51]}  Kf8 {[%clk 0:02:20]} 13. Qxa5 {[%clk 0:02:51]}  dxc3 {[%clk 0:02:20]} 14. Nxc3 {[%clk 0:02:47]}  d6 {[%clk 0:02:19]} 15. Nd5 {[%clk 0:02:37]}  b6 {[%clk 0:02:15]} 16. Qc3 {[%clk 0:02:37]}  c5 {[%clk 0:02:12]} 17. Bb2 {[%clk 0:02:25]}  Qd7 {[%clk 0:02:09]} 18. f4 {[%clk 0:02:10]}  Bb7 {[%clk 0:02:08]} 19. Rad1 {[%clk 0:02:04]}  Re8 {[%clk 0:02:06]} 20. f5 {[%clk 0:01:38]}  Ne5 {[%clk 0:02:00]} 21. f6 {[%clk 0:01:34]}  Bxd5 {[%clk 0:01:56]} 22. Rxd5 {[%clk 0:01:26]}  gxf6 {[%clk 0:01:56]} 23. Rxf6+ {[%clk 0:01:21]}  Ke7 {[%clk 0:01:32]} 24. Rfxd6 {[%clk 0:00:35]}  Qxd6 {[%clk 0:01:29]} 25. Rxe5+ {[%clk 0:00:35]}  Kf7 {[%clk 0:01:10]} 26. Qf3+ {[%clk 0:00:31]} 1-0


[Site "https://www.chess.com"]

[Event "Titled Tuesday Blitz March 22 Early 2022"]
[White "Aaditya Dhingra"]
[Black "Bodnaruk, Anastasia"]
[WhiteFideId "25678191"]
[BlackFideId "4181751"]
[WhiteElo "1849"]
[BlackElo "2393"]
[Result "0-1"]
[Round "11"]
[TimeControl "180+1"]
[Date "2022.03.22"]
[WhiteClock "0:00:25"]
[BlackClock "0:00:09"]

1. Nf3 {[%clk 0:03:00]}  Nf6 {[%clk 0:02:58]} 2. c4 {[%clk 0:02:58]}  g6 {[%clk 0:02:58]} 3. b3 {[%clk 0:02:57]}  Bg7 {[%clk 0:02:59]} 4. Bb2 {[%clk 0:02:58]}  c5 {[%clk 0:02:57]} 5. g3 {[%clk 0:02:57]}  d6 {[%clk 0:02:57]} 6. Bg2 {[%clk 0:02:58]}  e5 {[%clk 0:02:57]} 7. O-O {[%clk 0:02:57]}  Nc6 {[%clk 0:02:58]} 8. d3 {[%clk 0:02:57]}  O-O {[%clk 0:02:57]} 9. Nc3 {[%clk 0:02:56]}  h6 {[%clk 0:02:56]} 10. Nd2 {[%clk 0:02:56]}  Be6 {[%clk 0:02:52]} 11. Nde4 {[%clk 0:02:56]}  Ne8 {[%clk 0:02:43]} 12. Nd5 {[%clk 0:02:54]}  f5 {[%clk 0:02:43]} 13. Nd2 {[%clk 0:02:53]}  Qd7 {[%clk 0:02:26]} 14. e3 {[%clk 0:02:49]}  g5 {[%clk 0:02:24]} 15. f4 {[%clk 0:02:48]}  exf4 {[%clk 0:02:16]} 16. Bxg7 {[%clk 0:02:46]}  Nxg7 {[%clk 0:02:16]} 17. gxf4 {[%clk 0:02:44]}  Rae8 {[%clk 0:02:09]} 18. a3 {[%clk 0:02:35]}  g4 {[%clk 0:02:07]} 19. Qe1 {[%clk 0:02:27]}  h5 {[%clk 0:01:59]} 20. Qh4 {[%clk 0:02:24]}  Qf7 {[%clk 0:01:56]} 21. b4 {[%clk 0:02:19]}  Ne7 {[%clk 0:01:39]} 22. Nc7 {[%clk 0:02:17]}  Ng6 {[%clk 0:01:32]} 23. Qg5 {[%clk 0:02:06]}  Qxc7 {[%clk 0:01:31]} 24. Qxg6 {[%clk 0:02:06]}  Bf7 {[%clk 0:01:28]} 25. Qg5 {[%clk 0:01:57]}  Rxe3 {[%clk 0:01:28]} 26. Rae1 {[%clk 0:01:55]}  Rfe8 {[%clk 0:01:23]} 27. Kf2 {[%clk 0:01:54]}  Rxd3 {[%clk 0:01:08]} 28. Rxe8+ {[%clk 0:01:48]}  Bxe8 {[%clk 0:01:09]} 29. Ke2 {[%clk 0:01:25]}  Rxa3 {[%clk 0:01:08]} 30. Re1 {[%clk 0:01:25]}  Bf7 {[%clk 0:00:56]} 31. Kf1 {[%clk 0:01:18]}  cxb4 {[%clk 0:00:51]} 32. Re7 {[%clk 0:01:18]}  Bxc4+ {[%clk 0:00:19]} 33. Ke1 {[%clk 0:00:28]}  Ra1+ {[%clk 0:00:19]} 34. Kf2 {[%clk 0:00:28]}  Qc5+ {[%clk 0:00:19]} 35. Kg3 {[%clk 0:00:26]}  Ra3+ {[%clk 0:00:19]} 36. Bf3 {[%clk 0:00:25]}  Qg1+ {[%clk 0:00:09]} 0-1


[Site "https://www.chess.com"]

[Event "Titled Tuesday Blitz March 22 Early 2022"]
[White "Aravindh, Chithambaram VR."]
[Black "Daneshvar, Bardiya"]
[WhiteFideId "5072786"]
[BlackFideId "12576468"]
[WhiteElo "2561"]
[BlackElo "2295"]
[Result "1-0"]
[Round "11"]
[TimeControl "180+1"]
[Date "2022.03.22"]
[WhiteClock "0:00:13"]
[BlackClock "0:00:45"]

1. b3 {[%clk 0:03:00]}  e5 {[%clk 0:03:00]} 2. Bb2 {[%clk 0:03:01]}  Nc6 {[%clk 0:03:00]} 3. e3 {[%clk 0:03:01]}  d5 {[%clk 0:03:00]} 4. Bb5 {[%clk 0:03:01]}  Ne7 {[%clk 0:03:01]} 5. Nf3 {[%clk 0:02:58]}  f6 {[%clk 0:03:01]} 6. d4 {[%clk 0:02:57]}  e4 {[%clk 0:03:01]} 7. Nfd2 {[%clk 0:02:58]}  a6 {[%clk 0:03:01]} 8. Be2 {[%clk 0:02:58]}  g5 {[%clk 0:02:54]} 9. c4 {[%clk 0:02:59]}  Be6 {[%clk 0:02:52]} 10. cxd5 {[%clk 0:02:56]}  Nxd5 {[%clk 0:02:51]} 11. Nxe4 {[%clk 0:02:54]}  Bf5 {[%clk 0:02:51]} 12. Nbd2 {[%clk 0:02:52]}  Qe7 {[%clk 0:02:50]} 13. Ng3 {[%clk 0:02:51]}  Bg6 {[%clk 0:02:49]} 14. O-O {[%clk 0:02:44]}  O-O-O {[%clk 0:02:49]} 15. Rc1 {[%clk 0:02:40]}  h5 {[%clk 0:02:48]} 16. Rxc6 {[%clk 0:02:35]}  bxc6 {[%clk 0:02:48]} 17. Bxa6+ {[%clk 0:02:35]}  Kd7 {[%clk 0:02:47]} 18. e4 {[%clk 0:02:27]}  Nf4 {[%clk 0:02:45]} 19. Nf5 {[%clk 0:02:27]}  Bxf5 {[%clk 0:02:45]} 20. exf5 {[%clk 0:02:28]}  h4 {[%clk 0:02:41]} 21. Re1 {[%clk 0:02:27]}  Qf7 {[%clk 0:02:41]} 22. Bc4 {[%clk 0:02:25]}  Nd5 {[%clk 0:02:42]} 23. Ne4 {[%clk 0:02:22]}  Bb4 {[%clk 0:02:39]} 24. Re2 {[%clk 0:02:18]}  Rhe8 {[%clk 0:02:38]} 25. a3 {[%clk 0:01:54]}  Bd6 {[%clk 0:02:38]} 26. b4 {[%clk 0:01:52]}  Rb8 {[%clk 0:02:17]} 27. g3 {[%clk 0:01:30]}  Kd8 {[%clk 0:02:03]} 28. b5 {[%clk 0:01:23]}  Re7 {[%clk 0:01:39]} 29. bxc6 {[%clk 0:01:17]}  Ne3 {[%clk 0:01:38]} 30. Rxe3 {[%clk 0:00:52]}  Qxc4 {[%clk 0:01:37]} 31. Qh5 {[%clk 0:00:50]}  Qxc6 {[%clk 0:01:03]} 32. d5 {[%clk 0:00:49]}  Qe8 {[%clk 0:00:49]} 33. Qxe8+ {[%clk 0:00:33]}  Rxe8 {[%clk 0:00:50]} 34. Bxf6+ {[%clk 0:00:33]}  Be7 {[%clk 0:00:50]} 35. Bxe7+ {[%clk 0:00:19]}  Kxe7 {[%clk 0:00:49]} 36. Nxg5+ {[%clk 0:00:16]}  Kf6 {[%clk 0:00:50]} 37. Ne6 {[%clk 0:00:13]}  h3 {[%clk 0:00:46]} 38. Re1 {[%clk 0:00:13]}  Kxf5 {[%clk 0:00:45]} 39. Ng7+ {[%clk 0:00:13]} 1-0


[Site "https://www.chess.com"]

[Event "Titled Tuesday Blitz March 22 Early 2022"]
[White "Chen, Qi b"]
[Black "Borodavkin, Anatoly"]
[WhiteFideId "8614733"]
[BlackFideId "14150662"]
[WhiteElo "2432"]
[BlackElo "1845"]
[Result "1-0"]
[Round "11"]
[TimeControl "180+1"]
[Date "2022.03.22"]
[WhiteClock "0:00:39"]
[BlackClock "0:00:03"]

1. d4 {[%clk 0:03:00]}  d5 {[%clk 0:03:00]} 2. c4 {[%clk 0:02:59]}  Nc6 {[%clk 0:03:00]} 3. Nf3 {[%clk 0:02:56]}  Bg4 {[%clk 0:02:59]} 4. cxd5 {[%clk 0:02:54]}  Bxf3 {[%clk 0:02:56]} 5. gxf3 {[%clk 0:02:54]}  Qxd5 {[%clk 0:02:55]} 6. e3 {[%clk 0:02:53]}  e5 {[%clk 0:02:55]} 7. Nc3 {[%clk 0:02:53]}  Bb4 {[%clk 0:02:55]} 8. Bd2 {[%clk 0:02:49]}  Bxc3 {[%clk 0:02:54]} 9. bxc3 {[%clk 0:02:50]}  Qd6 {[%clk 0:02:54]} 10. Rg1 {[%clk 0:02:48]}  Nge7 {[%clk 0:02:54]} 11. Qb3 {[%clk 0:02:39]}  O-O {[%clk 0:02:48]} 12. O-O-O {[%clk 0:02:37]}  a5 {[%clk 0:02:14]} 13. Rg5 {[%clk 0:02:20]}  a4 {[%clk 0:01:59]} 14. Qc2 {[%clk 0:02:19]}  Ng6 {[%clk 0:01:54]} 15. Bd3 {[%clk 0:02:09]}  Rfb8 {[%clk 0:01:19]} 16. h4 {[%clk 0:02:07]}  h6 {[%clk 0:00:41]} 17. Rxg6 {[%clk 0:01:49]}  fxg6 {[%clk 0:00:40]} 18. Rg1 {[%clk 0:01:50]}  Ne7 {[%clk 0:00:39]} 19. dxe5 {[%clk 0:01:37]}  Qxe5 {[%clk 0:00:25]} 20. f4 {[%clk 0:01:37]}  Qd6 {[%clk 0:00:23]} 21. c4 {[%clk 0:01:35]}  Rd8 {[%clk 0:00:21]} 22. Be4 {[%clk 0:01:33]}  Qa3+ {[%clk 0:00:16]} 23. Kb1 {[%clk 0:01:33]}  Ra6 {[%clk 0:00:14]} 24. Bc1 {[%clk 0:01:29]}  Rb6+ {[%clk 0:00:13]} 25. Ka1 {[%clk 0:01:30]}  Qc5 {[%clk 0:00:11]} 26. h5 {[%clk 0:01:04]}  Qb4 {[%clk 0:00:07]} 27. hxg6 {[%clk 0:00:47]}  Nc6 {[%clk 0:00:07]} 28. Bd5+ {[%clk 0:00:41]}  Kf8 {[%clk 0:00:02]} 29. Qf5+ {[%clk 0:00:39]}  Ke8 {[%clk 0:00:03]} 30. Qf7# {[%clk 0:00:39]} 1-0


[Site "https://www.chess.com"]

[Event "Titled Tuesday Blitz March 22 Early 2022"]
[White "Deac, Bogdan-Daniel"]
[Black "Petrosyan, Manuel"]
[WhiteFideId "1226380"]
[BlackFideId "13300857"]
[WhiteElo "2646"]
[BlackElo "2592"]
[Result "0-1"]
[Round "11"]
[TimeControl "180+1"]
[Date "2022.03.22"]
[WhiteClock "0:00:10"]
[BlackClock "0:00:03"]

1. d4 {[%clk 0:03:00]}  Nf6 {[%clk 0:02:59]} 2. c4 {[%clk 0:03:01]}  e6 {[%clk 0:03:00]} 3. Nf3 {[%clk 0:03:01]}  d5 {[%clk 0:03:00]} 4. Nc3 {[%clk 0:03:02]}  Bb4 {[%clk 0:03:00]} 5. cxd5 {[%clk 0:03:02]}  exd5 {[%clk 0:03:00]} 6. Bg5 {[%clk 0:03:02]}  h6 {[%clk 0:03:01]} 7. Bh4 {[%clk 0:03:02]}  O-O {[%clk 0:03:00]} 8. e3 {[%clk 0:03:03]}  Bf5 {[%clk 0:03:01]} 9. Qb3 {[%clk 0:03:02]}  Bxc3+ {[%clk 0:02:57]} 10. Qxc3 {[%clk 0:03:03]}  g5 {[%clk 0:02:53]} 11. Bg3 {[%clk 0:03:03]}  Ne4 {[%clk 0:02:53]} 12. Qa3 {[%clk 0:03:03]}  Nd7 {[%clk 0:02:46]} 13. Nd2 {[%clk 0:02:57]}  Nxg3 {[%clk 0:02:38]} 14. hxg3 {[%clk 0:02:57]}  Kg7 {[%clk 0:02:39]} 15. Be2 {[%clk 0:02:51]}  c6 {[%clk 0:02:31]} 16. g4 {[%clk 0:02:50]}  Bg6 {[%clk 0:02:30]} 17. Nf1 {[%clk 0:02:47]}  a5 {[%clk 0:02:23]} 18. Ng3 {[%clk 0:02:40]}  Qb6 {[%clk 0:02:22]} 19. Qc3 {[%clk 0:02:32]}  Qb4 {[%clk 0:02:17]} 20. a3 {[%clk 0:02:18]}  Qxc3+ {[%clk 0:02:15]} 21. bxc3 {[%clk 0:02:19]}  b5 {[%clk 0:02:10]} 22. f3 {[%clk 0:01:37]}  Nb6 {[%clk 0:02:07]} 23. e4 {[%clk 0:01:29]}  Rae8 {[%clk 0:01:58]} 24. Bd3 {[%clk 0:01:26]}  dxe4 {[%clk 0:01:44]} 25. fxe4 {[%clk 0:01:25]}  Nd5 {[%clk 0:01:44]} 26. Kd2 {[%clk 0:01:24]}  Nf4 {[%clk 0:01:32]} 27. Rh2 {[%clk 0:01:21]}  Nxd3 {[%clk 0:01:05]} 28. Kxd3 {[%clk 0:01:22]}  Re7 {[%clk 0:00:57]} 29. Nf5+ {[%clk 0:01:03]}  Bxf5 {[%clk 0:00:57]} 30. gxf5 {[%clk 0:01:04]}  f6 {[%clk 0:00:53]} 31. Rah1 {[%clk 0:00:38]}  Rh8 {[%clk 0:00:52]} 32. g4 {[%clk 0:00:38]}  a4 {[%clk 0:00:50]} 33. Re2 {[%clk 0:00:33]}  Rd8 {[%clk 0:00:48]} 34. Kc2 {[%clk 0:00:28]}  c5 {[%clk 0:00:44]} 35. Kd3 {[%clk 0:00:24]}  cxd4 {[%clk 0:00:35]} 36. cxd4 {[%clk 0:00:24]}  Rc7 {[%clk 0:00:36]} 37. Rb1 {[%clk 0:00:16]}  Rc4 {[%clk 0:00:35]} 38. d5 {[%clk 0:00:16]}  Rdc8 {[%clk 0:00:34]} 39. Rxb5 {[%clk 0:00:13]}  Rc3+ {[%clk 0:00:35]} 40. Kd2 {[%clk 0:00:13]}  Rxa3 {[%clk 0:00:34]} 41. Rb7+ {[%clk 0:00:13]}  Kg8 {[%clk 0:00:34]} 42. Re3 {[%clk 0:00:12]}  Rxe3 {[%clk 0:00:28]} 43. Kxe3 {[%clk 0:00:12]}  Ra8 {[%clk 0:00:28]} 44. Rb2 {[%clk 0:00:05]}  a3 {[%clk 0:00:28]} 45. Ra2 {[%clk 0:00:06]}  Kf7 {[%clk 0:00:25]} 46. Kd4 {[%clk 0:00:06]}  Ke7 {[%clk 0:00:20]} 47. Kc5 {[%clk 0:00:06]}  Ra4 {[%clk 0:00:16]} 48. Kb5 {[%clk 0:00:05]}  Rxe4 {[%clk 0:00:16]} 49. Rxa3 {[%clk 0:00:06]}  Kd6 {[%clk 0:00:13]} 50. Ra6+ {[%clk 0:00:05]}  Kxd5 {[%clk 0:00:13]} 51. Rxf6 {[%clk 0:00:06]}  Rxg4 {[%clk 0:00:13]} 52. Rxh6 {[%clk 0:00:06]}  Rf4 {[%clk 0:00:10]} 53. f6 {[%clk 0:00:06]}  Ke5 {[%clk 0:00:07]} 54. Rg6 {[%clk 0:00:05]}  Kf5 {[%clk 0:00:07]} 55. Rg8 {[%clk 0:00:05]}  Kxf6 {[%clk 0:00:06]} 56. Kc5 {[%clk 0:00:04]}  Kf5 {[%clk 0:00:06]} 57. Kd5 {[%clk 0:00:04]}  Kg4 {[%clk 0:00:05]} 58. Ke5 {[%clk 0:00:05]}  Ra4 {[%clk 0:00:05]} 59. Rg7 {[%clk 0:00:05]}  Kh4 {[%clk 0:00:05]} 60. Kf5 {[%clk 0:00:05]}  g4 {[%clk 0:00:03]} 61. Rh7+ {[%clk 0:00:06]}  Kg3 {[%clk 0:00:04]} 62. Rb7 {[%clk 0:00:06]}  Ra5+ {[%clk 0:00:03]} 63. Ke4 {[%clk 0:00:06]}  Ra4+ {[%clk 0:00:03]} 64. Ke3 {[%clk 0:00:06]}  Kh3 {[%clk 0:00:02]} 65. Rh7+ {[%clk 0:00:06]}  Kg3 {[%clk 0:00:03]} 66. Rg7 {[%clk 0:00:07]}  Kg2 {[%clk 0:00:02]} 67. Ke2 {[%clk 0:00:06]}  g3 {[%clk 0:00:03]} 68. Rg8 {[%clk 0:00:07]}  Re4+ {[%clk 0:00:03]} 69. Kd3 {[%clk 0:00:06]}  Re7 {[%clk 0:00:04]} 70. Kd2 {[%clk 0:00:06]}  Kf2 {[%clk 0:00:04]} 71. Rf8+ {[%clk 0:00:06]}  Kg1 {[%clk 0:00:05]} 72. Rg8 {[%clk 0:00:07]}  g2 {[%clk 0:00:04]} 73. Rh8 {[%clk 0:00:07]}  Re5 {[%clk 0:00:04]} 74. Kd3 {[%clk 0:00:07]}  Kf2 {[%clk 0:00:03]} 75. Rf8+ {[%clk 0:00:08]}  Kg3 {[%clk 0:00:04]} 76. Rg8+ {[%clk 0:00:08]}  Kf3 {[%clk 0:00:04]} 77. Kd4 {[%clk 0:00:08]}  Re1 {[%clk 0:00:02]} 78. Rf8+ {[%clk 0:00:08]}  Ke2 {[%clk 0:00:02]} 79. Re8+ {[%clk 0:00:08]}  Kd2 {[%clk 0:00:03]} 80. Rg8 {[%clk 0:00:09]}  g1=Q+ {[%clk 0:00:03]} 81. Rxg1 {[%clk 0:00:10]}  Rxg1 {[%clk 0:00:03]} 0-1


[Site "https://www.chess.com"]

[Event "Titled Tuesday Blitz March 22 Early 2022"]
[White "Demin, Vladimir"]
[Black "Tanenbaum, Zachary"]
[WhiteFideId "4167457"]
[BlackFideId "2060850"]
[WhiteElo "2535"]
[BlackElo "2168"]
[Result "0-1"]
[Round "11"]
[TimeControl "180+1"]
[Date "2022.03.22"]
[WhiteClock "0:00:21"]
[BlackClock "0:00:11"]

1. d4 {[%clk 0:03:00]}  d5 {[%clk 0:02:59]} 2. Bf4 {[%clk 0:02:59]}  Nf6 {[%clk 0:02:58]} 3. e3 {[%clk 0:02:57]}  c5 {[%clk 0:02:58]} 4. Nc3 {[%clk 0:02:57]}  cxd4 {[%clk 0:02:57]} 5. exd4 {[%clk 0:02:57]}  a6 {[%clk 0:02:57]} 6. Bd3 {[%clk 0:02:50]}  Nc6 {[%clk 0:02:56]} 7. Nge2 {[%clk 0:02:49]}  Bg4 {[%clk 0:02:52]} 8. h3 {[%clk 0:02:43]}  Bh5 {[%clk 0:02:47]} 9. g4 {[%clk 0:02:43]}  Bg6 {[%clk 0:02:46]} 10. Qd2 {[%clk 0:02:33]}  e6 {[%clk 0:02:37]} 11. a3 {[%clk 0:02:31]}  Bd6 {[%clk 0:02:29]} 12. f3 {[%clk 0:02:20]}  Rc8 {[%clk 0:02:26]} 13. h4 {[%clk 0:02:20]}  Bxd3 {[%clk 0:02:06]} 14. cxd3 {[%clk 0:02:07]}  Na5 {[%clk 0:01:58]} 15. Qe3 {[%clk 0:01:52]}  Bxf4 {[%clk 0:01:41]} 16. Qxf4 {[%clk 0:01:50]}  Qb6 {[%clk 0:01:42]} 17. b4 {[%clk 0:01:46]}  Nb3 {[%clk 0:01:39]} 18. Rd1 {[%clk 0:01:12]}  Nxd4 {[%clk 0:01:35]} 19. Nxd4 {[%clk 0:00:44]}  Rxc3 {[%clk 0:01:34]} 20. h5 {[%clk 0:00:41]}  O-O {[%clk 0:01:28]} 21. h6 {[%clk 0:00:40]}  e5 {[%clk 0:00:23]} 22. Qg5 {[%clk 0:00:39]}  g6 {[%clk 0:00:21]} 23. Nf5 {[%clk 0:00:39]}  Re8 {[%clk 0:00:17]} 24. Rh2 {[%clk 0:00:22]}  Qg1+ {[%clk 0:00:15]} 25. Kd2 {[%clk 0:00:22]}  Qxh2+ {[%clk 0:00:11]} 26. Kxc3 {[%clk 0:00:21]}  Rc8+ {[%clk 0:00:11]} 0-1


[Site "https://www.chess.com"]

[Event "Titled Tuesday Blitz March 22 Early 2022"]
[White "Dilmukhametov, Artur"]
[Black "Kornyukov, Alexey"]
[WhiteFideId "24179922"]
[BlackFideId "4150457"]
[WhiteElo "2237"]
[BlackElo "2303"]
[Result "1-0"]
[Round "11"]
[TimeControl "180+1"]
[Date "2022.03.22"]
[WhiteClock "0:02:32"]
[BlackClock "0:00:14"]

1. d4 {[%clk 0:03:00]}  d5 {[%clk 0:00:14]} 2. Nc3 {[%clk 0:02:57]}  e6 {[%clk 0:00:14]} 3. Bf4 {[%clk 0:02:57]}  Nf6 {[%clk 0:00:15]} 4. e3 {[%clk 0:02:55]}  Bd6 {[%clk 0:00:15]} 5. Bxd6 {[%clk 0:02:55]}  Qxd6 {[%clk 0:00:15]} 6. Nf3 {[%clk 0:02:55]}  O-O {[%clk 0:00:14]} 7. Bd3 {[%clk 0:02:56]}  c5 {[%clk 0:00:14]} 8. b3 {[%clk 0:02:52]}  a6 {[%clk 0:00:13]} 9. Qd2 {[%clk 0:02:52]}  b5 {[%clk 0:00:11]} 10. a3 {[%clk 0:02:46]}  c4 {[%clk 0:00:12]} 11. bxc4 {[%clk 0:02:44]}  bxc4 {[%clk 0:00:13]} 12. Be2 {[%clk 0:02:42]}  Bb7 {[%clk 0:00:14]} 13. O-O {[%clk 0:02:42]}  Nc6 {[%clk 0:00:14]} 14. Rab1 {[%clk 0:02:39]}  Qc7 {[%clk 0:00:13]} 15. a4 {[%clk 0:02:38]}  Rae8 {[%clk 0:00:14]} 16. Ne5 {[%clk 0:02:32]}  Nxe5 {[%clk 0:00:14]} 17. dxe5 {[%clk 0:02:32]}  Qd7 {[%clk 0:00:14]} 1-0


[Site "https://www.chess.com"]

[Event "Titled Tuesday Blitz March 22 Early 2022"]
[White "Dinu, Dumitru-Daniel"]
[Black "Sadovsky, Artem"]
[WhiteFideId "1208403"]
[BlackFideId "4155840"]
[WhiteElo "2240"]
[BlackElo "2314"]
[Result "0-1"]
[Round "11"]
[TimeControl "180+1"]
[Date "2022.03.22"]
[WhiteClock "0:00:10"]
[BlackClock "0:01:22"]

1. e4 {[%clk 0:03:00]}  g6 {[%clk 0:02:59]} 2. d4 {[%clk 0:02:59]}  Bg7 {[%clk 0:03:00]} 3. Nc3 {[%clk 0:02:57]}  c6 {[%clk 0:02:57]} 4. Be3 {[%clk 0:02:54]}  d5 {[%clk 0:02:56]} 5. e5 {[%clk 0:02:54]}  h5 {[%clk 0:02:56]} 6. Qd2 {[%clk 0:02:49]}  Nh6 {[%clk 0:02:56]} 7. h3 {[%clk 0:02:47]}  Nf5 {[%clk 0:02:49]} 8. Bf4 {[%clk 0:02:46]}  b5 {[%clk 0:02:44]} 9. a3 {[%clk 0:02:43]}  a5 {[%clk 0:02:44]} 10. Nf3 {[%clk 0:02:40]}  Na6 {[%clk 0:02:41]} 11. Bd3 {[%clk 0:02:37]}  Nc7 {[%clk 0:02:39]} 12. Ne2 {[%clk 0:02:28]}  a4 {[%clk 0:02:23]} 13. O-O-O {[%clk 0:02:25]}  h4 {[%clk 0:02:18]} 14. g4 {[%clk 0:02:21]}  hxg3 {[%clk 0:02:17]} 15. fxg3 {[%clk 0:02:20]}  Ne6 {[%clk 0:02:16]} 16. g4 {[%clk 0:02:18]}  Nh4 {[%clk 0:02:16]} 17. Nxh4 {[%clk 0:02:15]}  Nxf4 {[%clk 0:02:16]} 18. Qxf4 {[%clk 0:02:09]}  Rxh4 {[%clk 0:02:16]} 19. Kb1 {[%clk 0:02:08]}  Bh6 {[%clk 0:02:15]} 20. Qf2 {[%clk 0:02:06]}  Bg5 {[%clk 0:02:14]} 21. Rdf1 {[%clk 0:01:47]}  Be6 {[%clk 0:02:14]} 22. Nf4 {[%clk 0:01:46]}  Kd7 {[%clk 0:02:14]} 23. Nxe6 {[%clk 0:01:45]}  fxe6 {[%clk 0:02:14]} 24. Bxg6 {[%clk 0:01:44]}  Qg8 {[%clk 0:02:13]} 25. Bf7 {[%clk 0:01:42]}  Qh7 {[%clk 0:02:13]} 26. Bh5 {[%clk 0:01:34]}  Rxh5 {[%clk 0:02:07]} 27. gxh5 {[%clk 0:01:33]}  Qxh5 {[%clk 0:02:08]} 28. Rhg1 {[%clk 0:01:31]}  b4 {[%clk 0:02:05]} 29. Qf3 {[%clk 0:01:27]}  Qh6 {[%clk 0:02:03]} 30. Rg4 {[%clk 0:01:02]}  Rb8 {[%clk 0:01:55]} 31. Rfg1 {[%clk 0:00:57]}  Bd2 {[%clk 0:01:47]} 32. Rg6 {[%clk 0:00:53]}  Qe3 {[%clk 0:01:36]} 33. Qf7 {[%clk 0:00:39]}  Qxh3 {[%clk 0:01:23]} 34. R6g3 {[%clk 0:00:14]}  Qh4 {[%clk 0:01:21]} 35. Qf2 {[%clk 0:00:13]}  Bf4 {[%clk 0:01:12]} 36. Rf3 {[%clk 0:00:13]}  Qxf2 {[%clk 0:01:12]} 37. Rxf2 {[%clk 0:00:13]}  Be3 {[%clk 0:01:13]} 38. Rgf1 {[%clk 0:00:10]}  Bxf2 {[%clk 0:01:12]} 39. Rxf2 {[%clk 0:00:11]}  bxa3 {[%clk 0:01:13]} 40. Ka2 {[%clk 0:00:10]}  axb2 {[%clk 0:01:12]} 41. Rf1 {[%clk 0:00:08]}  b1=Q+ {[%clk 0:01:13]} 42. Rxb1 {[%clk 0:00:07]}  Rxb1 {[%clk 0:01:14]} 43. Kxb1 {[%clk 0:00:08]}  c5 {[%clk 0:01:15]} 44. c3 {[%clk 0:00:07]}  cxd4 {[%clk 0:01:15]} 45. cxd4 {[%clk 0:00:07]}  Kc6 {[%clk 0:01:16]} 46. Kb2 {[%clk 0:00:07]}  Kb5 {[%clk 0:01:17]} 47. Kc3 {[%clk 0:00:08]}  Ka5 {[%clk 0:01:18]} 48. Kb2 {[%clk 0:00:07]}  Kb4 {[%clk 0:01:19]} 49. Kc2 {[%clk 0:00:08]}  a3 {[%clk 0:01:19]} 50. Kb1 {[%clk 0:00:08]}  Kb3 {[%clk 0:01:20]} 51. Ka1 {[%clk 0:00:08]}  Kc4 {[%clk 0:01:21]} 52. Ka2 {[%clk 0:00:09]}  Kxd4 {[%clk 0:01:22]} 53. Kxa3 {[%clk 0:00:10]}  Kxe5 {[%clk 0:01:23]} 54. Kb3 {[%clk 0:00:10]}  Kd4 {[%clk 0:01:22]} 0-1


[Site "https://www.chess.com"]